bitfinex-derivatives/quotes_BTCF0:USTF0_20250827
["timestamp","ask_amount","ask_price","bid_price","bid_amount"]
[1756338665899,0.10519126,111260.0,111250.0,1.31072202]
[1756338666100,0.10419126,111260.0,111250.0,1.31072202]
[1756338667192,0.23736126,111260.0,111250.0,0.99587]
[1756338667502,0.14981126,111260.0,111250.0,1.31060202]
[1756338667899,0.12667126,111260.0,111250.0,1.31060202]
[1756338668604,0.10319126,111260.0,111250.0,1.31060202]
[1756338668801,0.23836126,111260.0,111250.0,0.15735]
[1756338669002,0.20241126,111260.0,111250.0,0.80480202]
[1756338669202,0.16916126,111260.0,111250.0,0.80480202]
[1756338670498,0.16916126,111260.0,111250.0,1.31052202]
[1756338671302,0.16916126,111260.0,111250.0,0.47208202]
[1756338671501,0.16916126,111260.0,111250.0,1.31048202]
[1756338672402,0.14981126,111260.0,111250.0,1.31048202]
[1756338672796,0.12667126,111260.0,111250.0,1.31048202]
[1756338672998,0.08318237,111260.0,111250.0,1.40036382]
[1756338674606,0.08318237,111260.0,111250.0,1.31048202]
[1756338675507,0.08318237,111260.0,111250.0,0.47208202]
[1756338675707,0.08318237,111260.0,111250.0,1.10360202]
[1756338678805,0.07391801,111260.0,111250.0,1.19348382]
[1756338679002,0.03891801,111260.0,111250.0,1.19348382]
[1756338679312,0.0001,111270.0,111260.0,0.11278]
[1756338679610,0.11592,111280.0,111270.0,0.15735]
[1756338679908,0.11582,111280.0,111270.0,1.31028202]
[1756338680104,0.13517,111280.0,111270.0,0.47208202]
[1756338680306,0.13517,111280.0,111270.0,1.31024202]
[1756338680609,0.13527,111280.0,111270.0,1.31024202]
[1756338680810,0.20846886,111280.0,111270.0,1.31024202]
[1756338681008,0.21146886,111280.0,111270.0,1.31024202]
[1756338681912,0.17551886,111280.0,111270.0,1.31024202]
[1756338682210,0.21146886,111280.0,111270.0,1.31024202]
[1756338682612,0.14426886,111280.0,111270.0,1.31024202]
[1756338682810,0.12491886,111280.0,111270.0,1.31024202]
[1756338683905,0.12491886,111280.0,111270.0,1.40010762]
[1756338683906,0.11074748,111280.0,111270.0,1.40010762]
[1756338684107,0.08760748,111280.0,111270.0,1.40010762]
[1756338684908,0.08760748,111280.0,111270.0,0.47208202]
[1756338685108,0.08760748,111280.0,111270.0,1.31008202]
[1756338685611,0.08760748,111280.0,111270.0,0.47208202]
[1756338685806,0.22277748,111280.0,111270.0,0.15735]
[1756338686116,0.22277748,111280.0,111270.0,1.06244202]
[1756338686817,0.25129748,111280.0,111270.0,0.47208202]
[1756338687015,0.22277748,111280.0,111270.0,1.31004202]
[1756338688017,0.18682748,111280.0,111270.0,1.31004202]
[1756338688713,0.16747748,111280.0,111270.0,1.31004202]
[1756338688916,0.13422748,111280.0,111270.0,1.31004202]
[1756338689515,0.13422748,111280.0,111270.0,0.47208202]
[1756338689716,0.16651748,111280.0,111270.0,1.30996202]
[1756338690016,0.16251748,111280.0,111270.0,1.30996202]
[1756338690211,0.16351748,111280.0,111270.0,1.30992202]
[1756338691217,0.08460748,111280.0,111270.0,1.30992202]
[1756338691814,0.07529886,111280.0,111270.0,1.39978762]
[1756338692014,0.07529886,111280.0,111270.0,1.30992202]
[1756338692214,0.07429886,111280.0,111270.0,1.30992202]
[1756338692418,0.07529886,111280.0,111270.0,1.30992202]
[1756338693116,0.07529886,111280.0,111270.0,1.39978762]
[1756338694024,0.07529886,111280.0,111270.0,1.30992202]
[1756338696225,0.07529886,111280.0,111270.0,1.39978762]
[1756338697626,0.07329886,111280.0,111270.0,1.39978762]
[1756338697823,0.07329886,111280.0,111270.0,1.40078762]
[1756338699235,0.07329886,111280.0,111270.0,1.65078762]
[1756338700229,0.0001,111290.0,111280.0,0.2316876]
[1756338700431,0.04861,111300.0,111290.0,0.14183]
[1756338700634,0.0808,111300.0,111290.0,1.29404202]
[1756338701333,0.09002726,111300.0,111290.0,1.29404202]
[1756338702327,0.03034726,111300.0,111290.0,1.29404202]
[1756338702932,0.08316973,111300.0,111290.0,1.38389142]
[1756338703133,0.01322726,111300.0,111290.0,1.38389142]
[1756338703529,0.01322726,111300.0,111290.0,0.45656202]
[1756338703735,0.26677106,111320.0,111290.0,1.21606202]
[1756338703935,0.06344,111310.0,111300.0,0.47483202]
[1756338704134,0.06344,111310.0,111300.0,0.1601]
[1756338704334,0.0727838,111310.0,111300.0,0.96147202]
[1756338705528,0.0727838,111310.0,111300.0,0.47483202]
[1756338705730,0.1554238,111310.0,111300.0,1.31215202]
[1756338705931,0.1050738,111310.0,111300.0,1.31215202]
[1756338706131,0.1300338,111310.0,111300.0,0.47483202]
[1756338706329,0.1300338,111310.0,111300.0,1.31211202]
[1756338706734,0.20293269,111310.0,111300.0,1.31211202]
[1756338708443,0.17997269,111310.0,111300.0,1.31211202]
[1756338709243,0.22977739,111310.0,111300.0,1.31199202]
[1756338709444,0.25716739,111310.0,111300.0,1.31199202]
[1756338710340,0.20681739,111310.0,111300.0,1.31199202]
[1756338711536,0.22977739,111310.0,111300.0,1.31191202]
[1756338712138,0.20681739,111310.0,111300.0,1.31191202]
[1756338712537,0.22977739,111310.0,111300.0,1.31191202]
[1756338712739,0.16449739,111310.0,111300.0,1.31191202]
[1756338713135,0.11108739,111310.0,111300.0,1.31191202]
[1756338713341,0.13220739,111310.0,111300.0,0.47483202]
[1756338713540,0.16449739,111310.0,111300.0,1.31183202]
[1756338715344,0.16449739,111310.0,111300.0,0.47483202]
[1756338715543,0.25716739,111310.0,111300.0,0.47483202]
[1756338715739,0.25716739,111310.0,111300.0,1.31179202]
[1756338715943,0.22977739,111310.0,111300.0,1.31179202]
[1756338717246,0.20293269,111310.0,111300.0,1.31179202]
[1756338717546,0.20293269,111310.0,111300.0,0.47483202]
[1756338717745,0.20293269,111310.0,111300.0,1.31175202]
[1756338718149,0.22979944,111310.0,111300.0,1.31175202]
[1756338718343,0.20293269,111310.0,111300.0,1.31175202]
[1756338718543,0.20293269,111310.0,111300.0,0.47483202]
[1756338718745,0.20293269,111310.0,111300.0,1.31171202]
[1756338719243,0.17997269,111310.0,111300.0,1.31171202]
[1756338719443,0.23355269,111310.0,111300.0,1.31171202]
[1756338719838,0.23355269,111310.0,111300.0,0.47483202]
[1756338720048,0.23355269,111310.0,111300.0,0.99694]
[1756338720243,1.16515416,111310.0,111300.0,0.9651]
[1756338720444,1.16515416,111310.0,111300.0,0.16244]
[1756338720645,1.16515416,111310.0,111300.0,0.57651]
[1756338720941,1.16515416,111310.0,111300.0,0.10515]
[1756338721147,1.16515416,111310.0,111300.0,0.12642]
[1756338721346,1.16515416,111310.0,111300.0,0.16056]
[1756338722343,0.82515416,111310.0,111300.0,0.16056]
[1756338727054,0.26042214,111310.0,111300.0,0.16056]
[1756338727657,0.26042214,111310.0,111300.0,0.47529202]
[1756338728245,0.17455214,111310.0,111300.0,0.47529202]
[1756338728450,0.13223214,111310.0,111300.0,0.47529202]
[1756338729156,0.11111214,111310.0,111300.0,0.47529202]
[1756338730352,0.18974214,111310.0,111300.0,0.47529202]
[1756338730555,0.26141214,111310.0,111300.0,0.16056]
[1756338730951,0.57614416,111310.0,111300.0,0.62642]
[1756338731261,0.57614416,111310.0,111300.0,0.66056]
[1756338731558,0.57614416,111310.0,111300.0,0.16056]
[1756338732045,0.57614416,111310.0,111300.0,0.12642]
[1756338732246,0.26141214,111310.0,111300.0,0.16056]
[1756338732448,0.57614416,111310.0,111300.0,0.16056]
[1756338733154,0.57614416,111310.0,111300.0,0.05185]
[1756338733355,0.26141214,111310.0,111300.0,0.16303]
[1756338733554,0.59614416,111310.0,111300.0,0.16303]
[1756338735152,0.57614416,111310.0,111300.0,0.16303]
[1756338735855,0.57614416,111310.0,111300.0,0.12889]
[1756338736054,0.57614416,111310.0,111300.0,0.10762]
[1756338736249,1.18614416,111310.0,111290.0,0.0644]
[1756338736455,0.46503202,111300.0,111290.0,0.94261]
[1756338736759,0.8047014,111300.0,111290.0,0.10615]
[1756338736955,0.5047014,111300.0,111290.0,0.10615]
[1756338737154,0.5047014,111300.0,111290.0,0.05038]
[1756338737359,0.5047014,111300.0,111290.0,0.08666]
[1756338737858,0.8247014,111300.0,111290.0,0.05038]
[1756338738064,0.85162121,111300.0,111290.0,0.05038]
[1756338738261,1.01464121,111300.0,111280.0,0.75688]
[1756338738455,0.46503202,111290.0,111280.0,0.85414]
[1756338738656,0.46503202,111290.0,111280.0,0.85404]
[1756338739254,0.0212,111290.0,111280.0,1.16877202]
[1756338739663,0.05473,111290.0,111280.0,1.16877202]
[1756338739863,0.10818,111290.0,111280.0,1.16877202]
[1756338740061,0.11018,111290.0,111280.0,1.16877202]
[1756338740462,0.1523,111290.0,111280.0,1.31257202]
[1756338740663,0.1513,111290.0,111280.0,0.47629202]
[1756338740863,0.1513,111290.0,111280.0,1.31257202]
[1756338741562,0.12172,111290.0,111280.0,1.31257202]
[1756338742659,0.1513,111290.0,111280.0,0.99784]
[1756338743168,0.09785,111290.0,111280.0,0.99784]
[1756338743359,0.1513,111290.0,111280.0,0.99784]
[1756338743657,0.1513,111290.0,111280.0,1.31257202]
[1756338744352,0.1513,111290.0,111280.0,0.99784]
[1756338744557,0.1513,111290.0,111280.0,0.47629202]
[1756338744762,0.1513,111290.0,111280.0,1.31257202]
[1756338745270,0.0222,111290.0,111280.0,1.31257202]
[1756338745564,0.1513,111290.0,111280.0,1.31253202]
[1756338745761,0.06432,111290.0,111280.0,1.31253202]
[1756338745960,0.09785,111290.0,111280.0,1.31253202]
[1756338748964,0.05573,111290.0,111280.0,1.31253202]
[1756338749469,0.001,111290.0,111280.0,1.31253202]
[1756338749965,0.001,111290.0,111280.0,0.9978]
[1756338750158,0.0572,111290.0,111280.0,1.31253202]
[1756338750868,0.0572,111290.0,111280.0,0.47629202]
[1756338751068,0.12242,111290.0,111280.0,1.31245202]
[1756338751968,0.09969,111290.0,111280.0,1.31245202]
[1756338752370,0.0572,111290.0,111280.0,1.31245202]
[1756338755871,0.001,111290.0,111280.0,1.31245202]
[1756338757569,0.4833014,111300.0,111290.0,0.09746]
[1756338757765,0.4831014,111300.0,111290.0,0.16286]
[1756338759082,0.4841014,111300.0,111290.0,0.16286]
[1756338761084,0.4841014,111300.0,111290.0,0.99878]
[1756338761579,0.4841014,111300.0,111290.0,0.16286]
[1756338761781,0.4841014,111300.0,111290.0,0.99874]
[1756338762981,0.4841014,111300.0,111290.0,0.16286]
[1756338763286,0.4841014,111300.0,111290.0,0.72626]
[1756338764290,0.51083401,111300.0,111290.0,0.72626]
[1756338769291,0.66716579,111300.0,111290.0,0.9617919]
[1756338771589,0.66716579,111300.0,111290.0,1.2339919]
[1756338772785,0.39716389,111300.0,111290.0,1.2339919]
[1756338773088,0.38162389,111300.0,111290.0,1.2339919]
[1756338773887,0.40435389,111300.0,111290.0,1.2339919]
[1756338775785,0.40435389,111300.0,111290.0,0.16286]
[1756338775786,0.66716579,111300.0,111290.0,0.16286]
[1756338776088,0.14609199,111300.0,111290.0,0.99834]
[1756338776386,0.66716579,111300.0,111290.0,0.99834]
[1756338776989,0.66716579,111300.0,111290.0,1.2338719]
[1756338777294,0.97716579,111300.0,111290.0,0.99834]
[1756338777487,0.99716579,111300.0,111290.0,0.99834]
[1756338777793,0.99716579,111300.0,111290.0,0.9983]
[1756338779193,0.68716579,111300.0,111290.0,0.9983]
[1756338780495,1.02716579,111300.0,111290.0,0.12789]
[1756338780696,1.02716579,111300.0,111290.0,0.1603]
[1756338781094,0.68716579,111300.0,111290.0,0.1603]
[1756338782997,0.19610199,111300.0,111290.0,0.1603]
[1756338783199,1.03716579,111300.0,111290.0,0.1603]
[1756338783495,0.19610199,111300.0,111290.0,0.1603]
[1756338783700,0.66716579,111300.0,111290.0,0.1603]
[1756338788601,0.68716579,111300.0,111290.0,0.1603]
[1756338789607,0.66716579,111300.0,111290.0,0.1603]
[1756338790001,0.68716579,111300.0,111290.0,0.1603]
[1756338791397,0.21610199,111300.0,111290.0,0.1603]
[1756338791597,0.68716579,111300.0,111290.0,0.1603]
[1756338794005,0.66716579,111300.0,111290.0,0.1051]
[1756338794209,0.66716579,111300.0,111290.0,0.12787]
[1756338794400,0.97716579,111300.0,111290.0,0.16028]
[1756338794710,0.68716579,111300.0,111290.0,0.16028]
[1756338797912,0.68716579,111300.0,111290.0,0.12787]
[1756338798205,0.68716579,111300.0,111290.0,0.16028]
[1756338800006,0.66716579,111300.0,111290.0,0.16028]
[1756338800310,0.08724,111290.0,111280.0,0.12679]
[1756338800607,0.96649973,111290.0,111280.0,0.05163]
[1756338800910,0.88417973,111290.0,111270.0,0.69604]
[1756338801110,2.1192738,111280.0,111270.0,0.79216]
[1756338801298,2.4292738,111280.0,111270.0,0.12669]
[1756338801498,2.45647531,111280.0,111270.0,0.10392]
[1756338801703,1.8827419,111280.0,111270.0,0.1591]
[1756338801902,1.64821,111280.0,111270.0,0.1591]
[1756338802104,1.91099325,111280.0,111270.0,0.3946319]
[1756338802410,2.1192738,111280.0,111270.0,0.1621]
[1756338802908,2.1212738,111280.0,111270.0,0.1601]
[1756338804006,2.1222738,111280.0,111270.0,0.1591]
[1756338804408,2.1222738,111280.0,111270.0,0.3946319]
[1756338804609,1.52627,111280.0,111270.0,0.6446319]
[1756338804813,1.60239,111280.0,111270.0,0.4091]
[1756338805109,1.60239,111280.0,111270.0,0.6446319]
[1756338805309,1.52527,111280.0,111270.0,0.6446319]
[1756338805512,1.52627,111280.0,111270.0,0.6446319]
[1756338805710,1.55977,111280.0,111270.0,0.6446319]
[1756338805904,1.55777,111280.0,111270.0,0.6446319]
[1756338806104,1.58179,111280.0,111270.0,0.6446319]
[1756338806411,1.502,111280.0,111270.0,0.6446319]
[1756338807107,1.501,111280.0,111270.0,0.6446319]
[1756338807301,1.52527,111280.0,111270.0,0.6446319]
[1756338807502,1.502,111280.0,111270.0,0.6446319]
[1756338807699,1.52527,111280.0,111270.0,0.6446319]
[1756338807900,1.55777,111280.0,111270.0,0.6446319]
[1756338808107,1.55677,111280.0,111270.0,0.6446319]
[1756338808711,1.57979,111280.0,111270.0,0.6446319]
[1756338811108,1.59934,111280.0,111270.0,0.6446319]
[1756338811814,1.61959,111280.0,111270.0,1.4795119]
[1756338812013,1.64712,111280.0,111270.0,1.4795119]
[1756338813810,1.61959,111280.0,111270.0,1.4795119]
[1756338814013,1.59934,111280.0,111270.0,1.4795119]
[1756338814913,1.61959,111280.0,111270.0,1.4795119]
[1756338816116,1.61959,111280.0,111270.0,1.7150438]
[1756338816711,1.61959,111280.0,111270.0,1.4795119]
[1756338816913,1.64712,111280.0,111270.0,0.4091]
[1756338817217,1.8826519,111280.0,111270.0,1.2315419]
[1756338817405,1.8826519,111280.0,111270.0,0.3967819]
[1756338817611,1.8826519,111280.0,111270.0,1.2315419]
[1756338817810,1.64712,111280.0,111270.0,0.3622219]
[1756338818012,1.8826519,111280.0,111270.0,1.1969819]
[1756338818414,1.8826519,111280.0,111270.0,1.2315419]
[1756338818908,1.8836519,111280.0,111270.0,0.3967819]
[1756338819112,1.8836519,111280.0,111270.0,0.3622219]
[1756338819314,1.64812,111280.0,111270.0,1.1543519]
[1756338819513,1.8836519,111280.0,111270.0,1.1889119]
[1756338819813,1.8846519,111280.0,111270.0,1.2286719]
[1756338820512,1.64912,111280.0,111270.0,1.2286719]
[1756338821714,1.64912,111280.0,111270.0,0.99314]
[1756338821919,1.64812,111280.0,111270.0,1.2286719]
[1756338822414,1.64712,111280.0,111270.0,1.2286719]
[1756338823115,1.8836519,111280.0,111270.0,1.2286319]
[1756338823319,1.64812,111280.0,111270.0,1.2286319]
[1756338823717,1.64812,111280.0,111270.0,0.9931]
[1756338824012,1.64812,111280.0,111270.0,1.2286319]
[1756338824013,0.14712,111280.0,111270.0,1.2286319]
[1756338824414,0.14812,111280.0,111270.0,1.2286319]
[1756338824720,0.14812,111280.0,111270.0,0.9931]
[1756338824910,0.14812,111280.0,111270.0,1.2286319]
[1756338825422,0.14912,111280.0,111270.0,1.2286319]
[1756338826123,0.3846519,111280.0,111270.0,1.2286319]
[1756338826321,0.14912,111280.0,111270.0,1.2286319]
[1756338827622,0.14912,111280.0,111270.0,0.9931]
[1756338827822,0.14912,111280.0,111270.0,1.2286319]
[1756338829527,0.14912,111280.0,111270.0,0.3939519]
[1756338829825,0.3846519,111280.0,111270.0,1.2285119]
[1756338830026,0.14912,111280.0,111270.0,1.2285119]
[1756338830216,0.3846519,111280.0,111270.0,1.2285119]
[1756338832923,0.14912,111280.0,111270.0,1.2285119]
[1756338833122,0.3846519,111280.0,111270.0,1.2285119]
[1756338833423,0.14912,111280.0,111270.0,1.2285119]
[1756338833624,0.3846519,111280.0,111270.0,1.2285119]
[1756338834030,0.14912,111280.0,111270.0,0.99298]
[1756338834226,0.14912,111280.0,111270.0,1.2285119]
[1756338836427,0.3846519,111280.0,111270.0,1.2283519]
[1756338837734,0.64740028,111280.0,111270.0,0.99278]
[1756338838029,1.21740028,111280.0,111270.0,0.88588]
[1756338838731,1.21740028,111280.0,111270.0,0.9378]
[1756338838934,1.21740028,111280.0,111270.0,0.88588]
[1756338839336,1.21740028,111280.0,111270.0,0.91935]
[1756338839826,1.21740028,111280.0,111270.0,0.88588]
[1756338840130,1.21740028,111280.0,111260.0,0.2701919]
[1756338840335,0.6169438,111270.0,111260.0,0.0001]
[1756338840531,0.14588,111260.0,111250.0,0.0001]
[1756338840836,0.14588,111250.0,111240.0,0.96]
[1756338841130,0.3814119,111250.0,111240.0,0.9929]
[1756338841333,0.40860861,111250.0,111240.0,1.2284319]
[1756338841634,0.09607,111250.0,111240.0,1.2284319]
[1756338841836,0.07257161,111250.0,111240.0,1.6178238]
[1756338842136,0.0002,111260.0,111240.0,1.6178238]
[1756338842137,0.03203,111260.0,111240.0,1.6198238]
[1756338842438,0.0002,111260.0,111250.0,0.3941119]
[1756338842638,0.40180749,111270.0,111260.0,0.13683]
[1756338842938,0.42876439,111270.0,111260.0,1.2283919]
[1756338843427,0.19323249,111270.0,111260.0,0.99286]
[1756338843833,0.16607559,111270.0,111260.0,0.99286]
[1756338845139,0.02231559,111270.0,111260.0,1.30703095]
[1756338845434,0.09960559,111270.0,111260.0,1.30703095]
[1756338845836,0.02231559,111270.0,111260.0,1.30703095]
[1756338846138,0.05414559,111270.0,111260.0,1.30703095]
[1756338846639,0.07458559,111270.0,111260.0,1.30703095]
[1756338847032,0.05414559,111270.0,111260.0,1.30703095]
[1756338847435,0.02231559,111270.0,111260.0,1.30703095]
[1756338847635,0.05414559,111270.0,111260.0,1.30703095]
[1756338848339,0.04463559,111270.0,111260.0,1.30703095]
[1756338848539,0.02231559,111270.0,111260.0,1.30703095]
[1756338849440,0.16807559,111270.0,111260.0,0.99286]
[1756338849939,0.16807559,111270.0,111260.0,0.15858]
[1756338850240,0.16807559,111270.0,111260.0,0.9537]
[1756338850643,0.06341559,111270.0,111260.0,1.26787095]
[1756338850834,0.09524559,111270.0,111260.0,1.26787095]
[1756338851035,0.02231559,111270.0,111260.0,1.26787095]
[1756338851740,0.48224654,111270.0,111260.0,0.99286]
[1756338851933,0.09424559,111270.0,111260.0,0.99286]
[1756338852134,0.13782559,111270.0,111260.0,0.99286]
[1756338852340,0.16707559,111270.0,111260.0,0.99286]
[1756338852541,0.48124654,111270.0,111260.0,0.99286]
[1756338852740,0.16607559,111270.0,111260.0,0.99286]
[1756338852943,0.11638559,111270.0,111260.0,0.99286]
[1756338853142,0.16707559,111270.0,111260.0,0.99286]
[1756338853644,0.16807559,111270.0,111260.0,0.99286]
[1756338854045,0.43255654,111270.0,111260.0,0.99286]
[1756338854446,0.45299654,111270.0,111260.0,0.99286]
[1756338854842,0.48224654,111270.0,111260.0,0.99286]
[1756338855141,0.13882559,111270.0,111260.0,0.99286]
[1756338855347,0.43255654,111270.0,111260.0,0.99286]
[1756338855646,0.50224654,111270.0,111260.0,0.99286]
[1756338856236,0.50224654,111270.0,111260.0,0.15858]
[1756338856441,0.47299654,111270.0,111260.0,0.99282]
[1756338856945,0.50224654,111270.0,111260.0,0.99282]
[1756338857241,0.13882559,111270.0,111260.0,0.99282]
[1756338857546,0.11838559,111270.0,111260.0,0.99282]
[1756338857939,0.04463559,111270.0,111260.0,0.99282]
[1756338858139,0.11838559,111270.0,111260.0,0.99282]
[1756338858348,0.13882559,111270.0,111260.0,0.99282]
[1756338858650,0.11838559,111270.0,111260.0,0.99282]
[1756338859042,0.13882559,111270.0,111260.0,0.99282]
[1756338859446,0.45299654,111270.0,111260.0,0.99282]
[1756338859649,0.48224654,111270.0,111260.0,0.99282]
[1756338860143,0.48224654,111270.0,111260.0,0.12558]
[1756338860344,1.09224654,111270.0,111260.0,0.95982]
[1756338860551,1.11939411,111270.0,111260.0,0.12558]
[1756338860741,0.06847,111260.0,111250.0,0.92243]
[1756338861049,0.45993095,111260.0,111250.0,0.99602]
[1756338861246,0.45993095,111260.0,111250.0,0.15858]
[1756338861444,0.45993095,111260.0,111250.0,0.99602]
[1756338861751,0.47993095,111260.0,111250.0,0.99602]
[1756338862450,0.47993095,111260.0,111250.0,0.99634]
[1756338862752,0.47993095,111260.0,111250.0,0.99718]
[1756338863145,0.48093095,111260.0,111250.0,0.99718]
[1756338864441,0.48093095,111260.0,111250.0,0.99678]
[1756338864953,0.48193095,111260.0,111250.0,0.99678]
[1756338865943,0.48193095,111260.0,111250.0,0.15858]
[1756338866250,1.09945131,111260.0,111250.0,0.96334]
[1756338866452,1.1193323,111260.0,111250.0,0.96334]
[1756338866750,1.1193323,111260.0,111250.0,0.05142]
[1756338867143,0.02925,111250.0,111240.0,0.06324]
[1756338867357,0.91915649,111250.0,111240.0,0.05142]
[1756338867546,0.58744771,111250.0,111240.0,0.05142]
[1756338867740,0.82744771,111250.0,111240.0,0.10362]
[1756338867951,0.84286455,111250.0,111240.0,0.12558]
[1756338868253,0.84286455,111250.0,111240.0,0.15858]
[1756338869753,0.76134455,111250.0,111230.0,0.06405]
[1756338870057,0.45653095,111240.0,111230.0,0.99934]
[1756338870256,0.47653095,111240.0,111230.0,0.99924]
[1756338871153,0.548088,111240.0,111230.0,0.99924]
[1756338871359,0.548088,111240.0,111230.0,1.00024]
[1756338871558,0.548088,111240.0,111230.0,1.00224]
[1756338871851,0.54828277,111240.0,111230.0,0.12985]
[1756338872057,0.88828277,111240.0,111230.0,0.16412]
[1756338872456,0.56828277,111240.0,111230.0,0.16412]
[1756338872657,0.56828277,111240.0,111230.0,0.16212]
[1756338872852,0.56828277,111240.0,111230.0,0.16412]
[1756338874652,0.59575582,111240.0,111230.0,0.16412]
[1756338875252,0.57575582,111240.0,111230.0,0.16412]
[1756338875558,0.94575582,111240.0,111230.0,0.12985]
[1756338875750,0.26158487,111240.0,111230.0,0.12985]
[1756338875956,0.57575582,111240.0,111230.0,0.16412]
[1756338876263,0.94575582,111240.0,111230.0,0.16412]
[1756338876558,0.94575582,111240.0,111230.0,0.10834]
[1756338876950,0.57575582,111240.0,111230.0,0.16412]
[1756338877150,0.92575582,111240.0,111230.0,0.16412]
[1756338877862,0.28158487,111240.0,111230.0,0.16412]
[1756338878056,0.59575582,111240.0,111230.0,0.16412]
[1756338883266,0.90575582,111240.0,111230.0,0.16412]
[1756338883562,0.90575582,111240.0,111230.0,0.12985]
[1756338883862,0.90575582,111240.0,111230.0,0.10834]
[1756338884466,0.26158487,111240.0,111230.0,0.16412]
[1756338884662,0.57575582,111240.0,111230.0,0.16412]
[1756338887763,0.55556105,111240.0,111230.0,0.16412]
[1756338888963,0.0990301,111240.0,111230.0,0.47829095]
[1756338889161,0.07155705,111240.0,111230.0,0.47829095]
[1756338889361,0.02124,111240.0,111230.0,0.47829095]
[1756338889669,0.06480684,111250.0,111230.0,0.3159]
[1756338889972,0.1879346,111250.0,111240.0,0.99848]
[1756338890161,0.05872347,111250.0,111240.0,1.31265095]
[1756338890760,0.09049347,111250.0,111240.0,0.99848]
[1756338890964,0.3001713,111260.0,111240.0,0.90026]
[1756338891167,0.43048116,111260.0,111250.0,0.16112]
[1756338891663,0.44554384,111260.0,111250.0,0.16112]
[1756338892261,0.45954349,111260.0,111250.0,0.16112]
[1756338892967,0.49131349,111260.0,111250.0,0.16112]
[1756338893761,0.50815349,111260.0,111250.0,0.16112]
[1756338893965,0.49331349,111260.0,111250.0,0.16112]
[1756338894266,0.56567003,111260.0,111250.0,0.16112]
[1756338895369,0.58051003,111260.0,111250.0,0.16112]
[1756338895566,0.56567003,111260.0,111250.0,0.16112]
[1756338896366,0.58051003,111260.0,111250.0,0.16112]
[1756338896571,0.85051003,111260.0,111250.0,0.16112]
[1756338896866,0.85051003,111260.0,111250.0,0.09206]
[1756338897069,0.85051003,111260.0,111250.0,0.16112]
[1756338898670,0.85131003,111260.0,111250.0,0.16112]
[1756338900169,0.85131003,111260.0,111250.0,0.02916]
[1756338900467,0.85131003,111260.0,111250.0,0.05026]
[1756338901170,0.85131003,111260.0,111250.0,0.10505]
[1756338902060,0.85131003,111260.0,111250.0,0.07313]
[1756338902969,0.87866757,111260.0,111250.0,0.07313]
[1756338904172,0.87866757,111260.0,111250.0,0.05026]
[1756338904368,0.86351757,111260.0,111240.0,0.06087]
[1756338904572,0.40516095,111250.0,111240.0,0.04995]
[1756338904771,0.74251849,111250.0,111240.0,0.04995]
[1756338905272,0.46251849,111250.0,111240.0,0.04995]
[1756338906766,0.46251849,111250.0,111240.0,0.159]
[1756338906971,0.46251849,111250.0,111240.0,0.169]
[1756338906972,0.36639095,111250.0,111240.0,0.169]
[1756338907173,0.42032095,111250.0,111240.0,0.169]
[1756338907769,0.43516095,111250.0,111240.0,0.169]
[1756338912076,0.42032095,111250.0,111240.0,0.169]
[1756338912279,0.42032095,111250.0,111240.0,0.1691]
[1756338912679,0.43516095,111250.0,111240.0,0.1691]
[1756338913177,0.46253595,111250.0,111240.0,0.1691]
[1756338913775,0.43516095,111250.0,111240.0,0.1691]
[1756338914175,0.46254153,111250.0,111240.0,0.1691]
[1756338915379,0.44770153,111250.0,111240.0,0.1691]
[1756338915777,0.46254153,111250.0,111240.0,0.1343]
[1756338915977,0.43516095,111250.0,111240.0,0.1691]
[1756338917283,0.46257009,111250.0,111240.0,0.1691]
[1756338920884,0.46257009,111250.0,111240.0,0.07292]
[1756338921084,0.46257009,111250.0,111240.0,0.90872]
[1756338921577,0.46257009,111250.0,111240.0,0.9601]
[1756338923875,0.13355914,111250.0,111240.0,0.9601]
[1756338924076,0.02740914,111250.0,111240.0,1.52427095]
[1756338924282,0.42199003,111260.0,111240.0,1.47350095]
[1756338924478,0.4343134,111260.0,111250.0,0.10133]
[1756338924674,0.4342134,111260.0,111250.0,0.10143]
[1756338925384,0.74838435,111260.0,111250.0,0.10143]
[1756338925778,0.74938435,111260.0,111250.0,0.10143]
[1756338925976,0.4360334,111260.0,111250.0,1.48940095]
[1756338926185,0.10943908,111260.0,111250.0,1.47940095]
[1756338926778,0.10943908,111260.0,111250.0,1.16523]
[1756338927176,0.10843908,111260.0,111250.0,1.16523]
[1756338927385,0.44198003,111260.0,111250.0,0.91523]
[1756338927586,0.44098003,111260.0,111250.0,0.91523]
[1756338929679,0.12680908,111260.0,111250.0,0.91523]
[1756338931088,0.12680908,111260.0,111250.0,0.10143]
[1756338931485,0.12680908,111260.0,111250.0,0.91411]
[1756338931687,0.12680908,111260.0,111250.0,0.93631]
[1756338931991,0.81582003,111260.0,111250.0,0.10143]
[1756338932585,0.45582003,111260.0,111250.0,0.10143]
[1756338933092,0.45682003,111260.0,111250.0,0.10143]
[1756338933580,0.48419688,111260.0,111250.0,0.10143]
[1756338934493,0.79782003,111260.0,111250.0,0.10143]
[1756338935586,0.47782003,111260.0,111250.0,0.10143]
[1756338935982,0.50519642,111260.0,111250.0,0.10143]
[1756338936888,0.19102547,111260.0,111250.0,0.10143]
[1756338937089,0.50519642,111260.0,111250.0,0.10143]
[1756338938985,1.07519642,111260.0,111250.0,0.02895]
[1756338939190,1.07519642,111260.0,111250.0,0.0001]
[1756338941996,1.07519528,111260.0,111250.0,0.0001]
[1756338942994,1.07519528,111260.0,111250.0,0.03001]
[1756338944195,1.07519528,111260.0,111250.0,0.0001]
[1756338945199,1.53856623,111260.0,111240.0,0.0001]
[1756338945501,0.03371,111220.0,111210.0,0.07472]
[1756338945697,0.03371,111220.0,111200.0,0.07472]
[1756338945698,0.03371,111210.0,111200.0,0.07472]
[1756338945898,0.34788095,111210.0,111200.0,0.07472]
[1756338946298,0.03371,111210.0,111200.0,0.07472]
[1756338946499,0.34788095,111210.0,111200.0,0.07472]
[1756338947304,0.36788095,111210.0,111200.0,0.10463]
[1756338947693,0.72788095,111210.0,111200.0,0.10463]
[1756338947899,0.36788095,111210.0,111200.0,0.10463]
[1756338950111,0.34788095,111210.0,111200.0,0.10463]
[1756338951315,0.36788095,111210.0,111200.0,0.10463]
[1756338951910,0.34788095,111210.0,111200.0,0.10463]
[1756338952218,0.40108095,111210.0,111200.0,0.15756]
[1756338952819,0.38624095,111210.0,111200.0,0.15756]
[1756338953414,0.40108095,111210.0,111200.0,0.15756]